Cogmind - Beta 13 @@@ ROGUE MODE // 2024.04.12 @ 05:56:16 Player: A Moose Result: Destroyed by C-40 Crusher with Compactor Performance ------------- Evolutions (5) 2500 Regions Visited (16) 3200 Robots Destroyed (140) 700 Value Destroyed (4245) 4245 Prototype IDs (7) 140 Alien Tech Used (0) 0 Bonus (3855) 3855 TOTAL SCORE: 14640 Bonus ------- High Alert Combat Kills 609 Follower Combat Kills 579 Entered Garrisons 400 Used RIF Installer 1000 Entered DSFs 1000 Aligned with FarCom 300 Friendly Fire -33 Cogmind --------- Core Integrity 0/1000 Matter 300/300 Energy 100/100 System Corruption 3% Temperature Cool (0) Movement Core (50) Location -5/Waste Parts ------- > --- POWER (2) -------- (None) > --- PROPULSION (5) --- (None) > --- UTILITY (8) ------ (None) > --- WEAPON (2) ------- (None) > --- INVENTORY (5) ---- Advanced Cooling System Launcher Guidance Computer Active Sensor Spoofer Peak State ------------ > --- POWER ------------ Angular Momentum Engine Fusion Compressor > --- PROPULSION ------- Carbon-fiber Leg Improved Carbon-fiber Leg Flexi-carbon Leg Advanced VSS Leg Advanced VSS Leg > --- UTILITY ---------- Large Storage Unit Superbattery Enhanced Optical Array Core Analyzer Improved Particle Charger Advanced ECM Suite Medium Reactive Plating Hacking Suite > --- WEAPON ----------- Thermic Laser Heavy Machine Gun > --- INVENTORY -------- Light Angular Momentum Engine Advanced VSS Leg Advanced Cooling System Medium Matter Pod Enhanced Optical Array Launcher Guidance Computer Microactuators Active Sensor Spoofer Improved Reaction Control System Cloaking Device Medium Reactive Plating Remote Datajack [Rating: 87] Favorites ----------- Power Improved Ion Engine Engine Improved Ion Engine Power Core Fusion Compressor Propulsion Wheel Treads Advanced Treads Leg Aluminum Leg Wheel Wheel Hover Unit Combat Airjet Flight Unit Improved Flight Unit Utility Hacking Suite Device Particle Charger Storage Small Storage Unit Processor Improved Signal Interpreter Hackware Hacking Suite Protection Hardened Light Armor Plating Weapon Improved Assault Rifle Energy Gun Advanced Beam Rifle Energy Cannon Heavy Particle Cannon Ballistic Gun Improved Assault Rifle Ballistic Cannon Gauss Cannon Launcher Rocket Launcher Special Weapon Plasma Cutter Impact Weapon Heavy Mace Piercing Weapon Heavy Pick Build | -11 -10 -10 -9 -9 -9 -8 -8 -7 -7 -7 -7 -7 -6 -6 -5 -5 ------- Run | Yrd Mat Min Mat Min Exi Min Mat Fac Gar Fac DSF Gar Fac DSF Fac Was Slots Evolved 10 | . . . 2 . . . 2 2 . . . . 2 . 2 . Power 1 | . . . . . . . . . . . . . . . 1 . Propulsion 3 | . . . 1 . . . . 1 . . . . 1 . . . Utility 6 | . . . 1 . . . 2 1 . . . . 1 . 1 . Weapon . | . . . . . . . . . . . . . . . . . Parts Attached 159 | 6 5 . 15 3 2 4 42 3 13 3 7 21 5 16 10 4 Power 16 | 1 . . 1 1 . . 3 . 1 . 2 1 2 2 1 1 Engine 14 | 1 . . 1 1 . . 3 . 1 . 2 1 1 1 1 1 Core 2 | . . . . . . . . . . . . . 1 1 . . Reactor . | . . . . . . . . . . . . . . . . . Propulsion 40 | 2 1 . 2 1 . . 11 1 7 . 1 5 1 3 5 . Treads 1 | . . . . . . . 1 . . . . . . . . . Leg 17 | . . . . . . . . . 7 . 1 5 1 3 . . Wheel 16 | 2 1 . 2 1 . . 9 1 . . . . . . . . Hover 5 | . . . . . . . . . . . . . . . 5 . Flight 1 | . . . . . . . 1 . . . . . . . . . Utility 50 | 1 1 . 3 . 2 . 8 2 4 2 2 8 2 10 4 1 Device 21 | . . . . . . . 3 . 3 1 . 4 2 5 3 . Storage 7 | 1 . . . . 2 . 1 . . 1 . . . 2 . . Processor 6 | . . . 1 . . . 1 1 1 . 1 . . . 1 . Hackware 2 | . . . . . . . 1 1 . . . . . . . . Protection 14 | . 1 . 2 . . . 2 . . . 1 4 . 3 . 1 Artifact . | . . . . . . . . . . . . . . . . . Weapon 53 | 2 3 . 9 1 . 4 20 . 1 1 2 7 . 1 . 2 Energy Gun 6 | . . . . . . . 3 . . . . 2 . 1 . . Energy Cannon 3 | . . . . . . . 3 . . . . . . . . . Ballistic Gun 19 | 2 3 . 5 . . . 3 . . . 1 4 . . . 1 Ballistic Cannon 7 | . . . . . . . 3 . 1 1 1 1 . . . . Launcher 8 | . . . 1 1 . 2 4 . . . . . . . . . Special Weapon 8 | . . . 3 . . 2 3 . . . . . . . . . Impact Weapon 1 | . . . . . . . 1 . . . . . . . . . Slashing Weapon . | . . . . . . . . . . . . . . . . . Piercing Weapon 1 | . . . . . . . . . . . . . . . . 1 Special Melee Weapon . | . . . . . . . . . . . . . . . . . Unidentified Prototypes 7 | . 1 . . . 1 . 4 . 1 . . . . . . . Parts Lost 48 | . . . 1 1 . . 15 . 5 . 2 12 . 2 . 10 Power 6 | . . . . . . . 2 . 1 . 1 1 . . . 1 Propulsion 17 | . . . . . . . 7 . 3 . . 4 . 1 . 2 Utility 16 | . . . 1 . . . 5 . . . . 4 . . . 6 Weapon 9 | . . . . 1 . . 1 . 1 . 1 3 . 1 . 1 Highest Loss Streak 10 | . . . 1 1 . . 3 . 5 . 1 5 . 1 . 10 To Critical Strikes . | . . . . . . . . . . . . . . . . . Average Slot Usage (%) 93 | . 98 100 90 100 100 100 90 89 98 100 99 91 98 98 94 60 Engine 7 | . 14 14 11 11 11 11 8 7 6 7 7 4 5 1 5 2 Leg 11 | . . . . . . . . . 24 30 30 25 32 31 8 . Wheel 15 | . 28 28 29 33 33 33 25 24 4 . . . . . . . Device 4 | . . . . . . . 3 15 8 7 2 . 12 16 15 11 Storage 8 | . 14 14 11 11 11 11 9 7 7 7 7 7 6 11 11 7 Processor 12 | . . . 4 11 11 11 9 13 21 23 23 16 6 6 11 7 Hackware 5 | . . . . . . . 8 4 7 7 7 7 6 6 5 3 Protection 8 | . 12 14 12 11 11 11 8 . . . 4 12 13 5 1 . Energy Gun 1 | . . . . . . . 2 7 . . . . . 1 5 2 Ballistic Gun 8 | . 27 28 17 16 11 11 4 . . . 2 10 13 10 5 3 Ballistic Cannon 3 | . . . . . . . 1 7 14 15 11 3 . . . . Launcher 1 | . . . . 5 11 5 2 . . . . . . . . . Special Weapon 1 | . . . 4 . . 5 3 . . . . . . . . . Naked Turns 52 | . . . . . . . . . . . . . . . . 52 Heaviest Build 81 | 13 19 19 22 24 24 24 31 23 30 45 49 65 68 81 75 53 Greatest Support 94 | 26 26 20 32 32 32 32 36 46 58 58 63 66 81 94 89 60 Greatest Overweight (x) 4 | 4 . . . . . . 1 . 1 . . 2 . . 1 . Average Overweight (x) . | . . . . . . . . . . . . . . . . . Largest Inventory Capacity 15 | 8 8 8 8 8 8 8 8 8 8 15 15 15 15 15 15 15 Average Capacity 10 | 7 8 8 8 8 7 8 8 8 8 13 15 15 15 15 15 11 Most Carried 15 | 5 8 8 8 8 8 8 8 8 8 13 15 15 15 15 15 15 Average Carried 9 | 3 7 8 7 7 7 8 7 7 7 10 13 13 14 14 13 11 Final Capacity 15 | 8 8 8 8 8 8 8 8 8 8 15 15 15 15 15 15 5 Final Carried 15 | 4 8 8 8 8 8 8 7 8 8 13 15 15 15 14 15 3 Class Distribution -------------------- 48% | Mutant 40% | Scavenger-Mutant 7% | Skirmisher 3% | Infiltrator-Mutant Dominant Class ---------------- Mutant | -10/Materials Mutant | -10/Mines Mutant | -9/Materials Mutant | -9/Mines Mutant | -9/Exiles Mutant | -8/Mines Mutant | -8/Materials Mutant | -7/Factory Scavenger-Mutant | -7/Garrison Scavenger-Mutant | -7/Factory Scavenger-Mutant | -7/DSF Scavenger-Mutant | -7/Garrison Scavenger-Mutant | -6/Factory Scavenger-Mutant | -6/DSF Infiltrator-Mutant | -5/Factory Infiltrator-Mutant | -5/Waste Resources | -11 -10 -10 -9 -9 -9 -8 -8 -7 -7 -7 -7 -7 -6 -6 -5 -5 ----------- Run | Yrd Mat Min Mat Min Exi Min Mat Fac Gar Fac DSF Gar Fac DSF Fac Was Matter Collected 4472 | 207 257 140 370 162 . 189 875 4 591 . 379 691 23 484 . 100 Remotely . | . . . . . . . . . . . . . . . . . Salvage Created 4215 | . 298 140 411 148 . 109 1180 4 496 . 222 605 23 296 . 283 Parts 249 | . 28 10 30 13 . 21 58 3 14 . 10 41 2 12 . 7 Haulers Intercepted 5 | . . . 2 . . . 3 . . . . . . . . . Recyclers Shooed 1 | . . . . 1 . . . . . . . . . . . . Parts Field Recycled . | . . . . . . . . . . . . . . . . . Retrieved Matter . | . . . . . . . . . . . . . . . . . Parts Self-Destructed . | . . . . . . . . . . . . . . . . . Prevented . | . . . . . . . . . . . . . . . . . Kills | -11 -10 -10 -9 -9 -9 -8 -8 -7 -7 -7 -7 -7 -6 -6 -5 -5 ------- Run | Yrd Mat Min Mat Min Exi Min Mat Fac Gar Fac DSF Gar Fac DSF Fac Was Combat Hostiles Destroyed 115 | . 9 5 7 6 . 11 30 . 12 . 6 21 . 7 . 1 Melee 1 | . . . . . . . . . . . . . . . . 1 Guns 53 | . 9 5 7 3 . . 9 . 1 . . 12 . 7 . . Cannons 33 | . . . . . . . 7 . 11 . 6 9 . . . . AOE 27 | . . . . 3 . 11 13 . . . . . . . . . Classes Destroyed 16 | . 5 . 2 1 . 1 3 1 . . 2 . . . . 1 Worker 5 | . 1 . 1 1 . . 2 . . . . . . . . . Builder 2 | . . . . . . . 2 . . . . . . . . . Tunneler 1 | . . . . . . . . 1 . . . . . . . . Hauler 5 | . . . 2 . . . 3 . . . . . . . . . Recycler 3 | . . . . . . 1 2 . . . . . . . . . Operator 2 | . 1 . . . . . . . . . . . 1 . . . Watcher 7 | . 2 . 2 . . . 2 . 1 . . . . . . . Swarmer 48 | . 6 3 3 3 . 11 8 . . . . 10 . 4 . . Grunt 38 | . 3 2 2 1 . . 15 . 7 . . 7 . 1 . . Duelist 4 | . . . . 1 . . . . 3 . . . . . . . Sentry 11 | . . . 2 1 . . 5 . 1 . . 2 . . . . Specialist 4 | . . . . . . . . . . . 2 . . 2 . . Hunter 4 | . . . . . . . 1 . 1 . 2 . . . . . Programmer 3 | . . . . . . . . . . . 1 2 . . . . Heavy 2 | . . . . . . . 1 . . . 1 . . . . . Compactor 1 | . . . . . . . . . . . . . . . . 1 Best Kill Streak 10 | . 7 3 3 4 . 8 10 1 7 . 5 8 1 4 . 1 Combat Bots Only 8 | . 5 3 3 3 . 4 7 . 7 . 5 8 . 4 . 1 Max Kills in Single Turn 4 | . 2 1 1 3 . 4 4 1 2 . 1 2 1 2 . 1 Gunslinging 1 | . 1 . . . . . . . . . . 1 . 1 . . Exploded 4 | . . . . 2 . 4 3 . . . . . . . . . Melee 1 | . . . . . . . . . . . . . . . . 1 Uniques/NPCs Destroyed . | . . . . . . . . . . . . . . . . . Combat | -11 -10 -10 -9 -9 -9 -8 -8 -7 -7 -7 -7 -7 -6 -6 -5 -5 -------- Run | Yrd Mat Min Mat Min Exi Min Mat Fac Gar Fac DSF Gar Fac DSF Fac Was Hostile Shots Fired 628 | . 33 22 33 26 . 12 167 . 71 . 44 146 . 49 . 25 Missed 198 | . 10 6 12 4 . 7 58 . 28 . 17 43 . 12 . 1 Damage Taken 7297 | . 218 134 252 255 . 38 1818 . 580 . 660 1565 . 590 . 1187 Core 2163 | . 45 31 55 45 . . 461 . 154 . 128 163 . 52 . 1029 Absorbed by Shields . | . . . . . . . . . . . . . . . . . Ignored by Resistances 129 | . . . . . . . 28 . . . . . . 101 . . Core Remaining (%) 64 | 100 . 69 . . . 75 16 . . . . 36 . 93 . . Volleys Fired 347 | . 25 9 31 25 . 8 87 1 43 . 25 60 8 15 . 10 Largest 2 | . 2 2 2 2 . 2 2 2 2 . 2 2 2 2 . 2 Hottest 150 | . 46 46 46 56 . 56 150 109 109 . 105 95 55 115 . 63 Shots Fired 634 | . 51 18 59 36 . 16 155 2 85 . 47 104 16 30 . 15 Gun 376 | . 51 18 59 32 . 8 61 1 10 . 3 72 16 30 . 15 Cannon 224 | . . . . . . . 72 1 75 . 44 32 . . . . Launcher 34 | . . . . 4 . 8 22 . . . . . . . . . Special . | . . . . . . . . . . . . . . . . . Kinetic 514 | . 51 18 59 32 . 8 66 1 75 . 47 101 16 25 . 15 Thermal 81 | . . . . . . . 62 1 10 . . 3 . 5 . . Explosive 34 | . . . . 4 . 8 22 . . . . . . . . . Electromagnetic 5 | . . . . . . . 5 . . . . . . . . . Robot Hit Streak 17 | . 4 5 10 7 . 1 17 1 15 . 7 8 4 5 . 12 Robot Miss Streak 11 | . 4 2 3 3 . 3 3 1 4 . 2 11 4 4 . 1 Penetration Max 1 | . . . . . . . 1 . 1 . 1 . . . . 1 Secondary Targets 10 | . 3 . 2 1 . . 1 . . . . 1 . 2 . . Max Gunslinging Chain 1 | . 1 . 1 1 . . 1 . . . . 1 . 1 . . Shots Hit Robots 364 | . 26 12 39 18 . 1 94 1 41 . 32 61 7 15 . 17 Core Hits 243 | . 17 6 15 10 . 12 68 1 20 . 11 66 2 9 . 6 Critical Kills 1 | . . 1 . . . . . . . . . . . . . . Critical Parts Destroyed 3 | . . . 2 . . . . . . . . . . 1 . . Critical Strikes 22 | . . 1 2 . . . 4 . 8 . . 5 . 1 . 1 Destroy 4 | . . 1 2 . . . . . . . . . . 1 . . Blast 17 | . . . . . . . 4 . 8 . . 5 . . . . Impale 1 | . . . . . . . . . . . . . . . . 1 Melee Attacks 11 | . . . . . . . 7 . . . . . . . . 4 Impact 7 | . . . . . . . 7 . . . . . . . . . Slashing . | . . . . . . . . . . . . . . . . . Piercing 4 | . . . . . . . . . . . . . . . . 4 Sneak Attacks . | . . . . . . . . . . . . . . . . . Combat Hostiles . | . . . . . . . . . . . . . . . . . Follow-up Attacks . | . . . . . . . . . . . . . . . . . Damage Inflicted 11078 | . 401 230 629 574 . 629 3938 30 1271 . 995 1383 148 311 . 539 Guns 4192 | . 401 230 622 287 . . 826 . 120 . 22 849 148 311 . 376 Cannons 3749 | . . . . . . . 1061 30 1151 . 973 534 . . . . Explosions 2842 | . . . . 287 . 629 1926 . . . . . . . . . Melee 164 | . . . . . . . 106 . . . . . . . . 58 Ramming 131 | . . . 7 . . . 19 . . . . . . . . 105 Kinetic 6711 | . 401 230 622 287 . . 840 30 1151 . 995 1383 148 248 . 376 Thermal 1321 | . . . . 48 . 41 1049 . 120 . . . . 63 . . Explosive 2661 | . . . . 239 . 588 1834 . . . . . . . . . Electromagnetic 90 | . . . . . . . 90 . . . . . . . . . Impact 106 | . . . . . . . 106 . . . . . . . . . Slashing . | . . . . . . . . . . . . . . . . . Piercing 58 | . . . . . . . . . . . . . . . . 58 Highest Corruption 4 | . 2 2 . . . . 4 . . . . . . . . 3 Average Corruption 2 | . 2 2 . . . . 2 . . . . . . . . 2 Corruption Purged . | . . . . . . . . . . . . . . . . . Corruption Blocked . | . . . . . . . . . . . . . . . . . Effects 10 | . 3 . . . . . 5 . . . . . . . . 2 Message Errors 3 | . 1 . . . . . 1 . . . . . . . . 1 Matter Fused 3 | . 1 . . . . . 2 . . . . . . . . . Heat Flow Errors 1 | . . . . . . . . . . . . . . . . 1 Energy Discharges 2 | . . . . . . . 2 . . . . . . . . . Misfires 1 | . 1 . . . . . . . . . . . . . . . Overload Shots . | . . . . . . . . . . . . . . . . . Overflow Damage 109 | . . . . 13 . . 73 . 10 . . 13 . . . . Projectiles 64 | . . . . . . . 41 . 10 . . 13 . . . . Explosions 13 | . . . . 13 . . . . . . . . . . . . Melee 32 | . . . . . . . 32 . . . . . . . . . Knockbacks 29 | . . . . . . . 8 . 12 . 1 8 . . . . Impact . | . . . . . . . . . . . . . . . . . Kinetic 23 | . . . . . . . 6 . 9 . 1 7 . . . . Secondary 6 | . . . . . . . 2 . 3 . . 1 . . . . Self-Inflicted Damage 73 | . . . 3 . . . 27 . . . . . . . . 43 Shots 1 | . . . . . . . 1 . . . . . . . . . Rammed 48 | . . . 1 . . . 3 . . . . . . . . 44 Targets Rammed 48 | . . . 1 . . . 3 . . . . . . . . 44 Kicked . | . . . . . . . . . . . . . . . . . Crushed . | . . . . . . . . . . . . . . . . . Highest Temperature 443 | . 265 4 24 18 . 9 443 . 117 . . 204 24 153 . 155 Average Temperature 83 | . 61 3 11 12 . 4 126 . 26 . . 52 11 58 . 66 Received Heat Transfer 1686 | . 69 6 102 36 . . 711 . 162 . . 483 . 117 . . Effects 6 | . . . . . . . 6 . . . . . . . . . Shutdowns 2 | . . . . . . . 2 . . . . . . . . . Interference 3 | . . . . . . . 3 . . . . . . . . . Damage (minor) 1 | . . . . . . . 1 . . . . . . . . . Siege Activations . | . . . . . . . . . . . . . . . . . Robots Corrupted . | . . . . . . . . . . . . . . . . . Combat Hostiles . | . . . . . . . . . . . . . . . . . Parts Fried . | . . . . . . . . . . . . . . . . . Impact Corruptions 1 | . . . . . . . 1 . . . . . . . . . Robots Melted 1 | . . . . . . . 1 . . . . . . . . . Combat Hostiles 1 | . . . . . . . 1 . . . . . . . . . Parts Melted 3 | . . . . . . . 2 . . . . 1 . . . . Heat Transferred 2200 | . . . . 50 . 50 1728 . 222 . . . . 150 . . Parts Sabotaged . | . . . . . . . . . . . . . . . . . Parts Stolen . | . . . . . . . . . . . . . . . . . Parts Stripped . | . . . . . . . . . . . . . . . . . Power Chain Reactions 2 | . . . . . . . 2 . . . . . . . . . Alert | -11 -10 -10 -9 -9 -9 -8 -8 -7 -7 -7 -7 -7 -6 -6 -5 -5 ------- Run | Yrd Mat Min Mat Min Exi Min Mat Fac Gar Fac DSF Gar Fac DSF Fac Was Peak Influence 945 | . 296 235 280 353 . 238 833 383 735 385 418 945 505 579 313 111 Initial 495 | . . 115 91 73 . . 64 378 268 385 272 313 495 353 298 109 Average 354 | . 110 191 128 209 . 74 320 378 538 385 335 599 496 493 304 76 Maximum Alert Level 3 | . 1 1 1 1 . 1 3 1 3 1 2 3 2 2 1 . Low Security (%) 32 | 100 75 59 84 52 . 77 45 . . . . . . . . 100 Level 1 26 | . 24 40 15 47 . 22 23 100 15 100 80 8 . 18 100 . Level 2 29 | . . . . . . . 8 . 73 . 19 66 100 81 . . Level 3 11 | . . . . . . . 21 . 11 . . 24 . . . . Level 4 . | . . . . . . . . . . . . . . . . . Level 5 . | . . . . . . . . . . . . . . . . . High Security . | . . . . . . . . . . . . . . . . . Max Security . | . . . . . . . . . . . . . . . . . Sterilizations 1 | . . . . . . . . . . . . . . 1 . . Squads Dispatched 14 | . 1 . 4 . . . 5 . . . 2 . 1 1 . . Investigation 2 | . . . 1 . . . 1 . . . . . . . . . Extermination . | . . . . . . . . . . . . . . . . . Reinforcement 12 | . 1 . 3 . . . 4 . . . 2 . 1 1 . . Assault . | . . . . . . . . . . . . . . . . . Garrison . | . . . . . . . . . . . . . . . . . Intercept . | . . . . . . . . . . . . . . . . . Searches Triggered . | . . . . . . . . . . . . . . . . . Construction Impeded 1 | . . . . . . . 1 . . . . . . . . . Haulers Reinforced . | . . . . . . . . . . . . . . . . . Active Scanning Responses . | . . . . . . . . . . . . . . . . . Cargo Convoy Interrupts . | . . . . . . . . . . . . . . . . . Stealth | -11 -10 -10 -9 -9 -9 -8 -8 -7 -7 -7 -7 -7 -6 -6 -5 -5 --------- Run | Yrd Mat Min Mat Min Exi Min Mat Fac Gar Fac DSF Gar Fac DSF Fac Was Distress Signals 7 | . 1 . 2 . . . 3 . . . . 1 . . . . Communications Jammed . | . . . . . . . . . . . . . . . . . Distress Signals . | . . . . . . . . . . . . . . . . . Times Spotted 165 | . 15 4 12 7 . 9 48 . 16 . 5 29 3 11 . 6 Peak Tracking Total 10 | . 4 3 6 4 . 4 10 . 8 . 2 6 . 5 . 6 Tactical Retreats 11 | . . . 1 . . . 6 . 1 . . 2 . 1 . . Traps | -11 -10 -10 -9 -9 -9 -8 -8 -7 -7 -7 -7 -7 -6 -6 -5 -5 ------- Run | Yrd Mat Min Mat Min Exi Min Mat Fac Gar Fac DSF Gar Fac DSF Fac Was Traps Triggered 14 | . 1 . 1 . . . 2 . . . 4 2 . 3 1 . Indirectly . | . . . . . . . . . . . . . . . . . Trap Hack Attempts . | . . . . . . . . . . . . . . . . . Triggered . | . . . . . . . . . . . . . . . . . Disarmed . | . . . . . . . . . . . . . . . . . Reprogrammed . | . . . . . . . . . . . . . . . . . Reused . | . . . . . . . . . . . . . . . . . Traps Extracted . | . . . . . . . . . . . . . . . . . Installed . | . . . . . . . . . . . . . . . . . Triggered . | . . . . . . . . . . . . . . . . . Machines | -11 -10 -10 -9 -9 -9 -8 -8 -7 -7 -7 -7 -7 -6 -6 -5 -5 ---------- Run | Yrd Mat Min Mat Min Exi Min Mat Fac Gar Fac DSF Gar Fac DSF Fac Was Machines Disabled 6 | . . . . 1 . 2 2 . . . . . . 1 . . Max in Single Turn 2 | . . . . 1 . 2 1 . . . . . . . . . Machines Repaired . | . . . . . . . . . . . . . . . . . Machines Dismantled 10 | . . . 2 . . 3 5 . . . . . . . . . Machines Sabotaged . | . . . . . . . . . . . . . . . . . Overloaded Fab Kills . | . . . . . . . . . . . . . . . . . Hacking | -11 -10 -10 -9 -9 -9 -8 -8 -7 -7 -7 -7 -7 -6 -6 -5 -5 --------- Run | Yrd Mat Min Mat Min Exi Min Mat Fac Gar Fac DSF Gar Fac DSF Fac Was Machines Accessed 21 | . 1 . 1 . . . 9 2 3 1 . 1 2 . 1 . Terminals 16 | . 1 . . . . . 7 1 3 1 . 1 1 . 1 . Fabricators . | . . . . . . . . . . . . . . . . . Repair Stations . | . . . . . . . . . . . . . . . . . Recycling Units 2 | . . . 1 . . . 1 . . . . . . . . . Scanalyzers 2 | . . . . . . . 1 . . . . . 1 . . . Garrison Access 1 | . . . . . . . . 1 . . . . . . . . Total Hacks 49 | . 4 . 1 . . . 25 3 7 1 . 2 4 . 2 . Successful 29 | . 1 . 1 . . . 19 1 3 1 . 1 1 . 1 . Failed 20 | . 3 . . . . . 6 2 4 . . 1 3 . 1 . Catastrophic 4 | . 2 . . . . . 1 . . . . 1 . . . . Database Lockouts . | . . . . . . . . . . . . . . . . . Manual 8 | . . . . . 1 . 6 . . . . 1 . . . . Terminals 39 | . 4 . . . . . 18 2 7 1 . 2 3 . 2 . Fabricators . | . . . . . . . . . . . . . . . . . Repair Stations . | . . . . . . . . . . . . . . . . . Recycling Units 2 | . . . 1 . . . 1 . . . . . . . . . Scanalyzers 7 | . . . . . . . 6 . . . . . 1 . . . Garrison Access 1 | . . . . . . . . 1 . . . . . . . . Terminal Hacks 20 | . 1 . . . . . 12 . 3 1 . 1 1 . 1 . Record 1 | . . . . . . . 1 . . . . . . . . . Robot Analysis 1 | . . . . . . . 1 . . . . . . . . . Open Door 1 | . . . . . . . . . 1 . . . . . . . Open DSF 3 | . . . . . . . . . . 1 . . 1 . 1 . Level Access Points 1 | . . . . . . . 1 . . . . . . . . . Branch Access Points 2 | . 1 . . . . . 1 . . . . . . . . . Emergency Access Points 3 | . . . . . . . 1 . 1 . . 1 . . . . Alert Level 1 | . . . . . . . 1 . . . . . . . . . Unreport Threat 1 | . . . . . . . 1 . . . . . . . . . Locate Traps 1 | . . . . . . . 1 . . . . . . . . . Reinforcement Status 2 | . . . . . . . 2 . . . . . . . . . Recall Reinforcements 1 | . . . . . . . 1 . . . . . . . . . Zone Layout 1 | . . . . . . . 1 . . . . . . . . . Garrison Registry 1 | . . . . . . . . . 1 . . . . . . . Fabricator Hacks . | . . . . . . . . . . . . . . . . . Repair Station Hacks . | . . . . . . . . . . . . . . . . . Recycling Unit Hacks 2 | . . . 1 . . . 1 . . . . . . . . . Report Inventory 2 | . . . 1 . . . 1 . . . . . . . . . Scanalyzer 4 | . . . . . . . 4 . . . . . . . . . Insert Component 2 | . . . . . . . 2 . . . . . . . . . Analyze 2 | . . . . . . . 2 . . . . . . . . . Garrison Access Hacks 1 | . . . . . . . . 1 . . . . . . . . Unlock Access 1 | . . . . . . . . 1 . . . . . . . . Unauthorized Hacks 2 | . . . . . . . 2 . . . . . . . . . Terminals 2 | . . . . . . . 2 . . . . . . . . . Assimilate 2 | . . . . . . . 2 . . . . . . . . . Fabricators . | . . . . . . . . . . . . . . . . . Repair Stations . | . . . . . . . . . . . . . . . . . Recycling Units . | . . . . . . . . . . . . . . . . . Scanalyzers . | . . . . . . . . . . . . . . . . . Garrison Access . | . . . . . . . . . . . . . . . . . Data Cores Recovered . | . . . . . . . . . . . . . . . . . Used . | . . . . . . . . . . . . . . . . . Hacking Detections 16 | . 1 . . . . . 7 2 2 1 . 1 2 . . . Full Trace Events . | . . . . . . . . . . . . . . . . . Feedback Events . | . . . . . . . . . . . . . . . . . Feedback Blocked . | . . . . . . . . . . . . . . . . . Robot Schematics Acquired . | . . . . . . . . . . . . . . . . . Robots Built . | . . . . . . . . . . . . . . . . . Authchips . | . . . . . . . . . . . . . . . . . Time . | . . . . . . . . . . . . . . . . . Total Robot Build Rating . | . . . . . . . . . . . . . . . . . Part Schematics Acquired 2 | . . . . . . . 2 . . . . . . . . . Parts Built . | . . . . . . . . . . . . . . . . . Authchips . | . . . . . . . . . . . . . . . . . Time . | . . . . . . . . . . . . . . . . . Total Part Build Rating . | . . . . . . . . . . . . . . . . . Parts Repaired . | . . . . . . . . . . . . . . . . . Time . | . . . . . . . . . . . . . . . . . Parts Recycled . | . . . . . . . . . . . . . . . . . Recycled Matter . | . . . . . . . . . . . . . . . . . Retrieved Matter . | . . . . . . . . . . . . . . . . . Retrieved Components . | . . . . . . . . . . . . . . . . . Parts Scanalyzed 2 | . . . . . . . 2 . . . . . . . . . Part Schematics Acquired 2 | . . . . . . . 2 . . . . . . . . . Parts Damaged . | . . . . . . . . . . . . . . . . . Bothacking | -11 -10 -10 -9 -9 -9 -8 -8 -7 -7 -7 -7 -7 -6 -6 -5 -5 ------------ Run | Yrd Mat Min Mat Min Exi Min Mat Fac Gar Fac DSF Gar Fac DSF Fac Was Used RIF Installer 2 | . . . . . . . . . 1 . . 1 . . . . Program Shield 1 | . . . . . . . . . . . . 1 . . . . Robots Hacked . | . . . . . . . . . . . . . . . . . Non-combat . | . . . . . . . . . . . . . . . . . Combat . | . . . . . . . . . . . . . . . . . Robot Hacks Applied . | . . . . . . . . . . . . . . . . . Relay Couplers Released 3 | . . . . . . . . . . . . 3 . . . . Programmers 3 | . . . . . . . . . . . . 3 . . . . Fabnet Peak Effective % . | . . . . . . . . . . . . . . . . . Robots Rewired 7 | . . . . . . . . . 4 . . 3 . . . . Allies Hacked . | . . . . . . . . . . . . . . . . . Hacks Repelled . | . . . . . . . . . . . . . . . . . Allies | -11 -10 -10 -9 -9 -9 -8 -8 -7 -7 -7 -7 -7 -6 -6 -5 -5 -------- Run | Yrd Mat Min Mat Min Exi Min Mat Fac Gar Fac DSF Gar Fac DSF Fac Was Total Allies 12 | . . . . 1 . . . . 6 . . 5 . . . . Largest Group 6 | . . . . 1 . . . . 6 . . 5 2 2 . . Highest-Rated Group 292 | . . . . 31 . . . . 292 . . 213 87 87 . . Highest-Rated Ally 95 | . . . . 31 . . . . 95 . . 95 75 75 . . Total Orders 4 | . . . . . . . . . 4 . . . . . . . ROAM 4 | . . . . . . . . . 4 . . . . . . . Ally Attacks 94 | . . . . 7 . . . . 42 . . 33 . 12 . . Total Damage 2605 | . . . . 107 . . . . 1079 . . 874 . 545 . . Kills 19 | . . . . 2 . . . . 8 . . 6 . 3 . . Allies Corrupted . | . . . . . . . . . . . . . . . . . Allies Melted . | . . . . . . . . . . . . . . . . . Intel | -11 -10 -10 -9 -9 -9 -8 -8 -7 -7 -7 -7 -7 -6 -6 -5 -5 ------- Run | Yrd Mat Min Mat Min Exi Min Mat Fac Gar Fac DSF Gar Fac DSF Fac Was Robot Analysis Total 1 | . . . . . . . 1 . . . . . . . . . Derelict Logs Recovered 1 | . . . . 1 . . . . . . . . . . . . Drone Launches . | . . . . . . . . . . . . . . . . . Drone Recoveries . | . . . . . . . . . . . . . . . . . Exploration | -11 -10 -10 -9 -9 -9 -8 -8 -7 -7 -7 -7 -7 -6 -6 -5 -5 ------------- Run | Yrd Mat Min Mat Min Exi Min Mat Fac Gar Fac DSF Gar Fac DSF Fac Was Turns Passed 7710 | 67 316 49 565 348 224 499 1935 196 897 168 294 1289 271 228 179 185 Spaces Moved 4887 | 44 253 28 332 306 213 387 917 214 643 118 154 637 185 143 174 139 Core 21 | 15 . . . . . . . . . . . . . . . 6 Treads 4 | . . . . . . . 4 . . . . . . . . . Legs 1837 | . . . . . . . . . 568 118 154 637 185 143 32 . Wheels 2750 | 29 253 28 332 306 213 387 913 214 75 . . . . . . . Hover 275 | . . . . . . . . . . . . . . . 142 133 Flight . | . . . . . . . . . . . . . . . . . Fastest Speed 50 | 50 80 80 80 83 83 83 83 85 85 112 112 105 105 105 68 50 Average Speed 101 | 117 88 80 82 83 83 83 86 85 112 112 112 163 107 107 75 67 Slowest Speed 270 | 250 90 80 83 83 83 83 225 86 190 112 112 270 108 108 141 68 Overloaded Moves . | . . . . . . . . . . . . . . . . . Propulsion Burnouts . | . . . . . . . . . . . . . . . . . Robots Hopped . | . . . . . . . . . . . . . . . . . Cave-ins Triggered . | . . . . . . . . . . . . . . . . . Exploration Rate (%) 44 | 3 41 11 27 71 61 66 75 4 68 3 95 59 7 93 7 62 Regions Visited 16 Branch Regions 4 Pre-discovered Areas 1 | . . . . 1 . . . . . . . . . . . . Known Exits Taken 9 | . 1 . 1 1 1 1 1 1 . 1 . . 1 . . . Unknown Exits Taken 2 | 1 . 1 . . . . . . . . . . . . . . Scrap Searched 2 | . . . . 1 . 1 . . . . . . . . . . Spaces Dug 24 | . . . . . . 10 14 . . . . . . . . . Terrain Destroyed 301 | . . . . 23 . 91 181 . 4 . 1 . . . . 1 Melee . | . . . . . . . . . . . . . . . . . Projectile 33 | . . . . . . . 27 . 4 . 1 . . . . 1 AOE 268 | . . . . 23 . 91 154 . . . . . . . . . Terrain Rammed . | . . . . . . . . . . . . . . . . . Walls Destroyed . | . . . . . . . . . . . . . . . . . Machines Disabled . | . . . . . . . . . . . . . . . . . Actions | -11 -10 -10 -9 -9 -9 -8 -8 -7 -7 -7 -7 -7 -6 -6 -5 -5 --------- Run | Yrd Mat Min Mat Min Exi Min Mat Fac Gar Fac DSF Gar Fac DSF Fac Was Total 6639 | 59 299 36 447 364 259 466 1726 224 735 153 228 780 243 190 225 205 Wait 795 | . . . 3 27 40 28 557 . 5 25 26 20 40 1 23 . Move 4870 | 43 252 27 331 305 212 386 916 213 641 117 153 635 184 142 174 139 Hop . | . . . . . . . . . . . . . . . . . Pick Up 115 | 10 9 . 4 2 4 . 21 5 10 6 8 15 3 7 9 2 Fast Attach 16 | . 3 . 2 . . . 4 1 4 . . 1 1 . . . Attach 60 | 6 1 . 1 1 . . 15 2 3 . 4 12 1 3 8 3 Detach 3 | . . . . . . . 1 . . . . . . . 2 . Swap 83 | . 1 . 12 2 2 4 23 . 6 3 3 8 3 13 2 1 Drop 71 | . 8 . 5 2 1 . 12 2 10 2 3 5 3 9 7 2 Fire 347 | . 25 9 31 25 . 8 87 1 43 . 25 60 8 15 . 10 Melee 11 | . . . . . . . 7 . . . . . . . . 4 Ram 48 | . . . 1 . . . 3 . . . . . . . . 44 Kick . | . . . . . . . . . . . . . . . . . Crush . | . . . . . . . . . . . . . . . . . Escape Stasis 17 | . . . . . . . . . 1 . 6 10 . . . . Rewire 26 | . . . . . . . . . 12 . . 14 . . . . Trap . | . . . . . . . . . . . . . . . . . Miscellaneous 177 | . . . 57 . . 40 80 . . . . . . . . . Route ------- -11/Scrapyard -10/Materials (discovered 2 exits: *Mat / *Min) -10/Mines -9/Materials -9/Mines (discovered 2 exits: *Mat / *Exi) -9/Exiles -8/Mines -8/Materials (discovered 3 exits: *Fac x3) -7/Factory (discovered 2 exits: *Fac / Gar) -7/Garrison (discovered 3 exits: *Fac x3) -7/Factory -7/DSF -7/Garrison (discovered 3 exits: *Fac x3) -6/Factory -6/DSF -5/Factory -5/Waste History --------- Turn | Location | Event 34 | -11/Scrapyard | Discovered new exit (range 15) 68 | -11/Scrapyard | Entered Materials 236 | -10/Materials | Identified exit to Mines 278 | -10/Materials | Discovered new exit (range 16) 305 | -10/Materials | Build established: Mutant 384 | -10/Materials | Entered Mines 424 | -10/Mines | Discovered new exit (range 11) 433 | -10/Mines | Entered Materials 433 | -9/Materials | Evolved 2 slots: Propulsion x1, Utility x1 985 | -9/Materials | Discovered new exit (range 16) 997 | -9/Materials | Identified exit to Mines 998 | -9/Materials | Entered Mines 1027 | -9/Mines | Met a Derelict bent on vengeance 1081 | -9/Mines | Received a Mining Laser from a helpful Derelict 1297 | -9/Mines | Learned location of Storage (-7) 1327 | -9/Mines | Discovered new exit (range 8) 1334 | -9/Mines | Identified exit to Materials 1343 | -9/Mines | Deemed a non-threat by the Exiles lab entrance 1343 | -9/Mines | Discovered new exit (range 5) 1345 | -9/Mines | Identified exit to Exiles 1346 | -9/Mines | Entered Exiles 1367 | -9/Exiles | Met 8R-AWN 1381 | -9/Exiles | Met EX-HEX 1407 | -9/Exiles | Met EX-BIN 1417 | -9/Exiles | Aligned with FarCom system 1418 | -9/Exiles | Given EX-Vault access code 1437 | -9/Exiles | Opened EX-Vault 1442 | -9/Exiles | Found Prototype Storage 1443 | -9/Exiles | Identified Superbattery 1476 | -9/Exiles | Warned to stay clear of 0b10 Research branches 1486 | -9/Exiles | Exiles lab attacked by MAIN.C 1529 | -9/Exiles | Discovered new exit (range 11) 1536 | -9/Exiles | Identified exit to Mines 1570 | -9/Exiles | Left Exiles lab with Superbattery 1570 | -9/Exiles | Entered Mines 2065 | -8/Mines | Discovered exit to Materials (range 5) 2069 | -8/Mines | Entered Materials 2069 | -8/Materials | Evolved 2 slots: Utility x2 2737 | -8/Materials | Destroyed 7 combat bots 2870 | -8/Materials | Identified exit to Factory 3184 | -8/Materials | Build established: Skirmisher 3546 | -8/Materials | Core integrity fell below 50% 3565 | -8/Materials | Lost 3 parts (1p1u1w) 3812 | -8/Materials | Core integrity fell below 20% 3870 | -8/Materials | Lost 3 parts (1p2u) 4004 | -8/Materials | Entered Factory 4004 | -7/Factory | Evolved 2 slots: Propulsion x1, Utility x1 4028 | -7/Factory | Discovered new exit (range 13) 4038 | -7/Factory | Identified exit to Factory 4050 | -7/Factory | Identified exit to Garrison 4063 | -7/Factory | Build established: Mutant 4200 | -7/Factory | Entered Garrison 4342 | -7/Garrison | Destroyed 7 combat bots 4348 | -7/Garrison | Lost 5 parts (1p3n1w) 4374 | -7/Garrison | Triggered checkpoint 4398 | -7/Garrison | Triggered checkpoint 4428 | -7/Garrison | Found embedded Infiltrators 4550 | -7/Garrison | Triggered checkpoint 4701 | -7/Garrison | Discovered new exit (range 12) 4704 | -7/Garrison | Lost 3 allies 4724 | -7/Garrison | Triggered checkpoint 4910 | -7/Garrison | Discovered new exit (range 54) 4910 | -7/Garrison | Discovered new exit (range 14) 4910 | -7/Garrison | Discovered new exit (range 80) 4940 | -7/Garrison | Build established: Scavenger-Mutant 5056 | -7/Garrison | Identified exit to Factory 5078 | -7/Garrison | Installed Relay Interface Framework 5097 | -7/Garrison | Entered Factory 5265 | -7/Factory | Identified exit to DSF 5265 | -7/Factory | Entered DSF 5327 | -7/DSF | Additional patrols routed to DSF 5483 | -7/DSF | Discovered new exit (range 15) 5557 | -7/DSF | Identified exit to Garrison 5559 | -7/DSF | Entered Garrison 5719 | -7/Garrison | Spotted B-75 Beast 5720 | -7/Garrison | Spotted B-75 Beast 5818 | -7/Garrison | Core integrity fell below 50% 5847 | -7/Garrison | Lost 5 parts (2n2u1w) 5890 | -7/Garrison | Triggered checkpoint 5907 | -7/Garrison | Destroyed 8 combat bots 5965 | -7/Garrison | Discovered exit to Factory (range 12) 6092 | -7/Garrison | Triggered checkpoint 6141 | -7/Garrison | Discovered exit to Factory (range 8) 6192 | -7/Garrison | Triggered checkpoint 6264 | -7/Garrison | Triggered checkpoint 6338 | -7/Garrison | Found embedded Infiltrators 6341 | -7/Garrison | Lost 3 parts (1n1u1w) 6562 | -7/Garrison | Triggered checkpoint 6646 | -7/Garrison | Triggered checkpoint 6777 | -7/Garrison | Discovered exit to Factory (range 15) 6815 | -7/Garrison | Expanded RIF knowledge: Program Shield 6848 | -7/Garrison | Entered Factory 6848 | -6/Factory | Accompanied by 2 allies 6848 | -6/Factory | Evolved 2 slots: Propulsion x1, Utility x1 7118 | -6/Factory | Identified exit to DSF 7119 | -6/Factory | Entered DSF 7119 | -6/DSF | Accompanied by 2 allies 7151 | -6/DSF | Additional patrols routed to DSF 7159 | -6/DSF | Discovered new exit (range 12) 7307 | -6/DSF | Sterilization system engaged 7327 | -6/DSF | Ambient heat levels rising (+10) 7342 | -6/DSF | Ambient heat levels rising (+10) 7347 | -6/DSF | Entered Factory 7347 | -5/Factory | Evolved 2 slots: Power x1, Utility x1 7466 | -5/Factory | Spotted B-75 Beast 7526 | -5/Factory | Sucked down chute 7526 | -5/Factory | Entered Waste 7534 | -5/Waste | Spotted C-40 Crusher 7558 | -5/Waste | Spotted C-40 Crusher 7573 | -5/Waste | Spotted C-40 Crusher 7574 | -5/Waste | Spotted C-40 Crusher 7603 | -5/Waste | Spotted C-40 Crusher 7610 | -5/Waste | Spotted C-40 Crusher 7635 | -5/Waste | Crushed by Compactor (1 part destroyed, 2 dropped) 7641 | -5/Waste | Crushed by Compactor (1 part destroyed, 1 dropped) 7644 | -5/Waste | Crushed by Compactor (1 part destroyed, 2 dropped) 7648 | -5/Waste | Crushed by Compactor (1 part destroyed, 1 dropped) 7651 | -5/Waste | Crushed by Compactor (1 part destroyed, 1 dropped) 7654 | -5/Waste | Destroyed C-40 Crusher 7657 | -5/Waste | Crushed by Compactor (1 part destroyed, 2 dropped) 7660 | -5/Waste | Crushed by Compactor (1 part destroyed) 7663 | -5/Waste | Crushed by Compactor (1 part destroyed) 7682 | -5/Waste | Core integrity fell below 50% 7694 | -5/Waste | Lost 10 parts (1p2n6u1w) 7700 | -5/Waste | Core integrity fell below 20% 7711 | -5/Waste | Destroyed by C-40 Crusher with Compactor Last Messages --------------- System corrupted: Heat flow error (+195). Slammed into C-40 Crusher. 4 Matter crushed. Slammed into C-40 Crusher. 6 Matter crushed. 2 Matter crushed. Slammed into C-40 Crusher. YNQPWTWH &WB4HL7KMW8UPV8RCSPBGQV Slammed into C-40 Crusher. 11 Matter crushed. Slammed into C-40 Crusher. 9 Matter crushed. Slammed into C-40 Crusher. Destabilizing: Core damaged (-10). 7 Matter crushed. 3 Matter crushed. Slammed into C-40 Crusher. 3 Matter crushed. 4 Matter crushed. 3 Matter crushed. Map ----- +----------------------------------------------------+ | #???????????????????? | | #???????????????????? | | #???????????????????? | | # ######## ######## #???????????????????? | | # #??????# #??????# #???????????????????? | | # #??????# #??????# #???????????#???????? | | # #??????# #??????# #????????? #???????? | | # #??????# ######## ######## ###?????? | | #??????# #?????? | | #??????# #?????? | | #??????# #?????? | | #??????# #?????? | | # #??????# ######## ######## ###?????? | | # #??????# #??????" #????????? #???????? | | # #??????# #??????# #???????????#???????? | | # #??????# #??????# #???????????????????? | | # ######## #??????# #???????????????????? | | #??????# #???????????????????? | | #??????# #???????????????????? | | #??????#CC #???????????????????? | | #??????#CC #???????????????????? | | # ######## #??????#CC #???????????????????? | | # #??????? #??????#CCCC#???????????????????? | | # #?????????? #??????#CCCC#???????????????????? | | # #??????????????????#CCCC#???????????????????? | | # #??????????????????#@=CC#???????????????????? | | ??????????????????######???????????????????? | | ??????????????????????????????????????????? | | #?????????????????????????????????????????? | | #?????????????????????????????????????????? | | #?????????????????????????????????????????? | | #?????????????????????????????????????????? | | #?????????????????????????????????????????? | | #?????????????????????????????????????????? | | ########?????????????????????????????????????????? | | ?????????????????????????????????????????????????? | | ?????????????????????????????????????????????????? | | ?????????????????????????????????????????????????? | | ?????????????????????????????????????????????????? | | ?????????????????????????????????????????????????? | | ?????????????????????????????????????????????????? | | ?????????????????????????????????????????????????? | | ?????????????????????????????????????????????????? | | ?????????????????????????????????????????????????? | | ?????????????????????????????????????????????????? | | ?????????????????????????????????????????????????? | | ?????????????????????????????????????????????????? | | ?????????????????????????????????????????????????? | | ?????????????????????????????????????????????????? | | ?????????????????????????????????????????????????? | +----------------------------------------------------+ Best States ------------- Heat Dissipation 48 Energy Generation 38 Energy Capacity 1800 Matter Stores 300 Matter Capacity 300 Sight Range 22 Terrain Scan Range 16 Terrain Scan Density 10 ECM Strength 2 Cloak Strength 2 Armor Coverage 450 Resistance: KI 30 Resistance: TH 10 Evasion (%) 61 Targeting Accuracy 6 Core Analysis 6 Recoil Reduction 1 Particle Charging 20 Offensive Hacking 10 Item Schematics ----------------- Adv. Treads | -8/Materials | Scanalyzed Melee Analysis Suite | -8/Materials | Scanalyzed Robot Schematics ------------------ None Fabricated ------------ Nothing Alien Tech Used ----------------- None Achievements -------------- None Challenges ------------ None Game ------ Seed MetafiberDefenseTriangulator Manual? 0 Play Time 02:06:26 Cumulative 29.8 hours Start 2024.04.12 @ 02:09:38 End 2024.04.12 @ 05:56:16 Sessions 3 Manual Loads 0 Difficulty Rogue Special Mode None Game No. 37 Rogue 28 Adventurer 9 Explorer 0 Win Type - Total 0 Types 0/0/0/0/0/0/0/0/0 Lore% 23 Gallery% 37 Achievement% 29 Wizard Run 0 Options --------- Layout 1 ASCII 0 Keyboard 0 Movement Mouse Keybinds 0 Fullscreen 1 Font 24/Smallcaps Map View 50x35 Zoom Use 0% Tactical HUD 0 Map Filters NONE Filters NONE Steam 1 RUN: 7f53301a-703d-476a-9d49-4089913ca1a1